bitfinex-derivatives/quotes_BTCF0:USTF0_20250527
["timestamp","ask_amount","ask_price","bid_price","bid_amount"]
[1748368448767,1.43440212,110340.0,110330.0,0.14569645]
[1748368450273,1.20751021,110340.0,110330.0,0.24432255]
[1748368450865,1.20751021,110340.0,110330.0,0.24426711]
[1748368451067,1.30361021,110340.0,110330.0,0.27646711]
[1748368451370,1.30361021,110340.0,110330.0,0.27644035]
[1748368451770,1.30361021,110340.0,110330.0,0.27644823]
[1748368452866,1.30361021,110340.0,110330.0,0.27643548]
[1748368453066,0.94281021,110340.0,110330.0,0.27643548]
[1748368453269,0.94281021,110340.0,110330.0,0.27643545]
[1748368453575,1.16970212,110340.0,110330.0,0.27643545]
[1748368453775,1.16970212,110340.0,110330.0,0.27641327]
[1748368454163,1.16970212,110340.0,110330.0,0.1777872]
[1748368454363,1.16970212,110340.0,110330.0,0.2764133]
[1748368455164,1.16970212,110340.0,110330.0,0.1777872]
[1748368455469,1.16970212,110340.0,110330.0,0.2764133]
[1748368456376,1.16970212,110340.0,110330.0,0.27641385]
[1748368457969,1.16970212,110340.0,110330.0,0.27641454]
[1748368458478,1.53050212,110340.0,110330.0,0.17778844]
[1748368459277,1.53050212,110340.0,110330.0,0.17783841]
[1748368459670,1.53050212,110340.0,110330.0,0.17790754]
[1748368461367,1.53050212,110340.0,110330.0,0.16492855]
[1748368461570,1.53050212,110340.0,110330.0,0.17791758]
[1748368462682,1.52607981,110340.0,110330.0,0.17791758]
[1748368462887,1.52595981,110340.0,110330.0,0.17791758]
[1748368463079,1.52607981,110340.0,110330.0,0.17791758]
[1748368463268,1.52595981,110340.0,110330.0,0.17784418]
[1748368463672,1.53050212,110340.0,110330.0,0.17783512]
[1748368464179,1.52998212,110340.0,110330.0,0.17783406]
[1748368464378,1.52986212,110340.0,110330.0,0.17783406]
[1748368464675,1.52998212,110340.0,110330.0,0.17783406]
[1748368466482,1.52998212,110340.0,110330.0,0.16492855]
[1748368466682,1.52998212,110340.0,110330.0,0.17783631]
[1748368466683,1.30309021,110340.0,110330.0,0.17783631]
[1748368466983,1.52998212,110340.0,110330.0,0.17783631]
[1748368467182,1.52998212,110340.0,110330.0,0.16492855]
[1748368467489,1.52998212,110340.0,110330.0,0.05799808]
[1748368467778,1.52998212,110340.0,110330.0,0.04492855]
[1748368467983,1.52998212,110340.0,110330.0,0.05800024]
[1748368468183,1.52998212,110340.0,110330.0,0.04492855]
[1748368468374,1.52998212,110340.0,110330.0,0.05800031]
[1748368468771,1.52998212,110340.0,110330.0,0.05799939]
[1748368469877,1.52998212,110340.0,110330.0,0.05799941]
[1748368471491,1.52998212,110340.0,110330.0,0.05799817]
[1748368471678,1.52998212,110340.0,110330.0,0.04492855]
[1748368471873,1.65098212,110340.0,110330.0,0.05806018]
[1748368472078,1.65098212,110340.0,110330.0,0.04492855]
[1748368473283,1.65098212,110340.0,110330.0,0.05806074]
[1748368473485,1.65098212,110340.0,110330.0,0.00580385]
[1748368473787,1.65098212,110340.0,110320.0,0.06494909]
[1748368473990,0.80017611,110330.0,110320.0,0.09494909]
[1748368474187,1.17017611,110330.0,110320.0,0.06274909]
[1748368475685,1.20207611,110330.0,110320.0,0.06274909]
[1748368476599,1.20207611,110330.0,110320.0,0.09524909]
[1748368479194,1.20207611,110330.0,110320.0,0.03394909]
[1748368479587,1.20207611,110330.0,110320.0,0.06394909]
[1748368479902,0.9751842,110330.0,110320.0,0.06394909]
[1748368480093,1.20207611,110330.0,110320.0,0.09444909]
[1748368482886,0.9751842,110330.0,110320.0,0.09444909]
[1748368483085,1.20207611,110330.0,110320.0,0.09444909]
[1748368485401,1.20207611,110330.0,110320.0,0.10751769]
[1748368485703,1.20207611,110330.0,110320.0,0.10751862]
[1748368486203,1.20207611,110330.0,110320.0,0.10727457]
[1748368486805,1.20207611,110330.0,110320.0,0.09444909]
[1748368487007,1.20207611,110330.0,110320.0,0.10727799]
[1748368487397,0.9751842,110330.0,110320.0,0.10727799]
[1748368487603,1.20207611,110330.0,110320.0,0.10727799]
[1748368487809,1.4348642,110330.0,110320.0,0.10727799]
[1748368488111,1.66175611,110330.0,110320.0,0.10727941]
[1748368488606,1.69275611,110330.0,110320.0,0.10727941]
[1748368490208,1.4922642,110330.0,110320.0,0.20590502]
[1748368490402,1.71911611,110330.0,110320.0,0.20588181]
[1748368490702,1.71923611,110330.0,110320.0,0.23898181]
[1748368490917,1.75021611,110330.0,110320.0,0.23898181]
[1748368491202,1.75475842,110330.0,110320.0,0.23896678]
[1748368491407,1.75475842,110330.0,110320.0,0.23896679]
[1748368491711,1.78575842,110330.0,110320.0,0.23896679]
[1748368491906,1.81755842,110330.0,110320.0,0.23896679]
[1748368492606,1.81755842,110330.0,110320.0,0.23896689]
[1748368493704,1.81755842,110330.0,110320.0,0.23896742]
[1748368494508,1.81755842,110330.0,110320.0,0.2389683]
[1748368494711,1.81743842,110330.0,110320.0,0.2389683]
[1748368495103,1.81743842,110330.0,110320.0,0.22617519]
[1748368495308,1.81743842,110330.0,110320.0,0.23900607]
[1748368496501,1.81743842,110330.0,110320.0,0.23901519]
[1748368496710,1.59054651,110330.0,110320.0,0.23901519]
[1748368497002,1.81743842,110330.0,110320.0,0.23901519]
[1748368497798,1.81743842,110330.0,110320.0,0.23901897]
[1748368500510,1.81743842,110330.0,110320.0,0.23900081]
[1748368501210,1.81743842,110330.0,110320.0,0.2390029]
[1748368502310,1.81743842,110330.0,110320.0,0.23900296]
[1748368502508,1.81743842,110330.0,110320.0,0.23900298]
[1748368503011,1.81743842,110330.0,110320.0,0.23900295]
[1748368503197,1.81743842,110330.0,110320.0,0.22617519]
[1748368503401,1.81743842,110330.0,110320.0,0.239003]
[1748368504615,1.81743842,110330.0,110320.0,0.23900387]
[1748368507505,1.81743842,110330.0,110320.0,0.23900411]
[1748368507910,1.81743842,110330.0,110320.0,0.22617519]
[1748368508110,1.81743842,110330.0,110320.0,0.23899953]
[1748368508712,1.45663842,110330.0,110320.0,0.23899953]
[1748368508914,1.81743842,110330.0,110320.0,0.23899953]
[1748368509718,1.59054651,110330.0,110320.0,0.23899953]
[1748368509919,1.84524399,110330.0,110320.0,0.23899953]
[1748368510219,1.84524399,110330.0,110320.0,0.23900422]
[1748368510412,1.59054651,110330.0,110320.0,0.23900422]
[1748368510609,1.32300399,110330.0,110320.0,0.14037812]
[1748368510809,0.91640651,110330.0,110320.0,0.6749022]
[1748368511112,1.46002399,110330.0,110320.0,0.22617519]
[1748368511311,1.45990399,110330.0,110320.0,0.20889059]
[1748368511512,1.52392399,110330.0,110320.0,0.0127154]
[1748368511711,1.55552399,110330.0,110320.0,9e-08]
[1748368511903,1.52726887,110330.0,110320.0,9e-08]
[1748368512109,1.64790887,110330.0,110320.0,9e-08]
[1748368512508,1.42146651,110330.0,110320.0,9e-08]
[1748368512713,1.64790887,110330.0,110320.0,9e-08]
[1748368513109,0.1812005,110320.0,110310.0,0.00104276]
[1748368513321,1.21244286,110320.0,110310.0,0.08966886]
[1748368513817,1.24324286,110320.0,110310.0,0.08966886]
[1748368514314,1.24324286,110320.0,110310.0,0.09166886]
[1748368514723,1.24324286,110320.0,110310.0,0.12246886]
[1748368515015,1.24324286,110320.0,110310.0,0.09266886]
[1748368515819,1.24324286,110320.0,110310.0,0.12466886]
[1748368516018,1.24324286,110320.0,110310.0,0.12166886]
[1748368516222,1.24424286,110320.0,110310.0,0.12166886]
[1748368516919,1.47068522,110320.0,110310.0,0.15486886]
[1748368517916,1.47998604,110320.0,110310.0,0.15486886]
[1748368518305,1.25354368,110320.0,110310.0,0.15486886]
[1748368520513,1.25796599,110320.0,110310.0,0.15486886]
[1748368520914,1.61876599,110320.0,110310.0,0.15486886]
[1748368523711,1.61876599,110320.0,110310.0,0.16770638]
[1748368523911,1.25796599,110320.0,110310.0,0.16770638]
[1748368524816,1.25796599,110320.0,110310.0,0.13570638]
[1748368526324,1.25796599,110320.0,110310.0,0.13571987]
[1748368527720,1.83616599,110320.0,110310.0,0.13571987]
[1748368528023,1.83616599,110320.0,110310.0,0.16731987]
[1748368529628,1.83616599,110320.0,110310.0,0.16729709]
[1748368531427,1.60972363,110320.0,110310.0,0.15446886]
[1748368531627,1.83600599,110320.0,110310.0,0.16729706]
[1748368532420,1.83600599,110320.0,110310.0,0.16729519]
[1748368534330,1.25796599,110320.0,110310.0,0.16729706]
[1748368534529,1.83588599,110320.0,110310.0,0.19809706]
[1748368534729,1.83600599,110320.0,110310.0,0.19809706]
[1748368534921,1.83588599,110320.0,110310.0,0.19809706]
[1748368535121,1.83600599,110320.0,110310.0,0.19809706]
[1748368535428,1.83600599,110320.0,110310.0,0.1980648]
[1748368536732,1.83600599,110320.0,110310.0,0.19805686]
[1748368537623,1.15168363,110320.0,110310.0,0.19805686]
[1748368537933,1.15168363,110320.0,110310.0,0.19805274]
[1748368537934,1.83588599,110320.0,110310.0,0.19805274]
[1748368538335,1.60944363,110320.0,110310.0,0.19805274]
[1748368538533,1.83588599,110320.0,110310.0,0.19805274]
[1748368538835,1.83588599,110320.0,110310.0,0.19800499]
[1748368539325,1.83588599,110320.0,110310.0,0.18526886]
[1748368539532,1.83588599,110320.0,110310.0,0.19800949]
[1748368540928,1.83576599,110320.0,110310.0,0.19800949]
[1748368541725,1.83576599,110320.0,110310.0,0.19800259]
[1748368541922,1.86404019,110320.0,110310.0,0.19800259]
[1748368542122,1.86404019,110320.0,110310.0,0.19799534]
[1748368542332,1.60932363,110320.0,110310.0,0.19799534]
[1748368542928,1.86404019,110320.0,110310.0,0.19799534]
[1748368543735,1.86404019,110320.0,110310.0,0.18526886]
[1748368543926,1.86404019,110320.0,110310.0,0.19801411]
[1748368544540,1.60932363,110320.0,110310.0,0.19801411]
[1748368544832,1.60932363,110320.0,110310.0,0.19801146]
[1748368545036,1.86404019,110320.0,110310.0,0.19801146]
[1748368545433,2.11875675,110320.0,110310.0,0.10241229]
[1748368545736,0.181217,110310.0,110300.0,0.16383626]
[1748368545936,1.26073356,110310.0,110300.0,0.27004982]
[1748368546240,1.26073356,110310.0,110300.0,0.28298649]
[1748368546539,1.26085356,110310.0,110300.0,0.27004982]
[1748368546933,1.26073356,110310.0,110300.0,0.30174982]
[1748368547134,1.26085356,110310.0,110300.0,0.30174982]
[1748368547828,1.26085356,110310.0,110300.0,0.31468532]
[1748368547829,1.006137,110310.0,110300.0,0.31468532]
[1748368548339,1.65735356,110310.0,110300.0,0.31468532]
[1748368548535,1.65747356,110310.0,110300.0,0.31468532]
[1748368549234,0.945437,110310.0,110300.0,0.31468532]
[1748368549537,1.65743356,110310.0,110300.0,0.31453114]
[1748368550135,1.68903356,110310.0,110300.0,0.31453114]
[1748368551037,1.69345587,110310.0,110300.0,0.31453114]
[1748368551241,1.04633931,110310.0,110300.0,0.31449428]
[1748368551434,1.01395931,110310.0,110300.0,0.91726638]
[1748368551639,1.01395931,110310.0,110300.0,0.67537436]
[1748368551640,1.26867587,110310.0,110300.0,0.67537436]
[1748368551835,1.29895587,110310.0,110300.0,0.67537436]
[1748368552135,1.29465356,110310.0,110300.0,0.66254982]
[1748368553027,1.65987587,110310.0,110300.0,0.314563]
[1748368553233,1.65987587,110310.0,110300.0,0.31456298]
[1748368553442,1.29907587,110310.0,110300.0,0.31456298]
[1748368553739,1.07625931,110310.0,110300.0,0.31456304]
[1748368553941,1.69177587,110310.0,110300.0,0.30174982]
[1748368554234,1.94649243,110310.0,110300.0,0.20634982]
[1748368554443,1.72327587,110310.0,110300.0,0.16634982]
[1748368554837,1.72327587,110310.0,110300.0,0.19824982]
[1748368555543,1.46855931,110310.0,110300.0,0.19824982]
[1748368555744,1.72327587,110310.0,110300.0,0.21114401]
[1748368555940,1.46843931,110310.0,110300.0,0.27476062]
[1748368556132,1.69488451,110310.0,110300.0,0.27476062]
[1748368556537,1.69500451,110310.0,110300.0,0.27476062]
[1748368557049,1.46855931,110310.0,110300.0,0.27476062]
[1748368557448,1.46855931,110310.0,110300.0,0.28476062]
[1748368557449,1.69500451,110310.0,110300.0,0.28476062]
[1748368557842,1.69488451,110310.0,110300.0,0.28472841]
[1748368558038,1.69500451,110310.0,110300.0,0.28472841]
[1748368558250,1.46855931,110310.0,110300.0,0.28472841]
[1748368558442,1.69500451,110310.0,110300.0,0.28472841]
[1748368558938,1.23780451,110310.0,110300.0,0.28472841]
[1748368559140,1.69468451,110310.0,110300.0,0.28472841]
[1748368560138,1.69468451,110310.0,110300.0,0.08861465]
[1748368560836,1.69468451,110310.0,110300.0,0.07583606]
[1748368561843,1.69468451,110310.0,110300.0,0.08889961]
[1748368562039,1.69468451,110310.0,110300.0,0.07583606]
[1748368563046,1.69468451,110310.0,110300.0,0.08886603]
[1748368563834,1.69468451,110310.0,110300.0,0.07583606]
[1748368564039,1.69468451,110310.0,110300.0,0.0888688]
[1748368564551,1.69468451,110310.0,110300.0,0.08886418]
[1748368564846,1.46823931,110310.0,110300.0,0.07583606]
[1748368565046,1.69468451,110310.0,110300.0,0.07583606]
[1748368565243,1.46823931,110310.0,110300.0,0.07583606]
[1748368565451,1.69468451,110310.0,110300.0,0.07583606]
[1748368565842,1.69468451,110310.0,110300.0,0.0888642]
[1748368566242,1.69468451,110310.0,110300.0,0.07583606]
[1748368566449,1.69468451,110310.0,110300.0,0.08885036]
[1748368567353,1.69468451,110310.0,110300.0,0.08887114]
[1748368567948,1.46823931,110310.0,110300.0,0.08887114]
[1748368568143,1.69468451,110310.0,110300.0,0.08887114]
[1748368568551,1.69468451,110310.0,110300.0,0.08885745]
[1748368569758,1.69468451,110310.0,110300.0,0.08885342]
[1748368571354,1.69468451,110310.0,110300.0,0.01459752]
[1748368571565,0.181233,110300.0,110290.0,8e-08]
[1748368571754,1.3630382,110300.0,110290.0,8e-08]
[1748368573155,1.3630382,110300.0,110290.0,0.00100008]
[1748368573458,1.3630382,110300.0,110290.0,8e-08]
[1748368575159,1.7238382,110300.0,110290.0,8e-08]
[1748368576454,1.497393,110300.0,110290.0,8e-08]
[1748368576853,2.1801582,110300.0,110290.0,8e-08]
[1748368579857,1.378033,110300.0,110290.0,0.06621364]
[1748368580068,2.1794382,110300.0,110290.0,0.06621364]
[1748368580370,2.1794382,110300.0,110290.0,0.16201364]
[1748368580557,1.60902051,110300.0,110290.0,0.16201364]
[1748368580752,1.72774051,110300.0,110290.0,0.17201364]
[1748368580957,0.56565531,110300.0,110290.0,0.35326314]
[1748368581157,0.56577531,110300.0,110290.0,0.35326314]
[1748368581358,0.75185531,110300.0,110290.0,0.35326314]
[1748368581662,0.75197531,110300.0,110290.0,0.35326314]
[1748368581864,0.29577531,110300.0,110290.0,0.35326314]
[1748368582067,0.75193531,110300.0,110290.0,0.35326314]
[1748368582259,0.64193531,110300.0,110290.0,0.35326314]
[1748368582465,0.65193531,110300.0,110290.0,0.35326314]
[1748368582859,0.19577531,110300.0,110290.0,0.36241461]
[1748368583063,0.65189531,110300.0,110290.0,0.36241461]
[1748368583266,0.65189531,110300.0,110290.0,0.40624659]
[1748368583452,0.19577531,110300.0,110290.0,0.46574348]
[1748368583770,0.19577531,110300.0,110290.0,0.41892014]
[1748368584365,0.19577531,110300.0,110290.0,0.41890601]
[1748368585065,0.19577531,110300.0,110290.0,0.41890678]
[1748368585664,0.19577531,110300.0,110290.0,0.41890653]
[1748368587571,0.19577531,110300.0,110290.0,0.41890763]
[1748368587871,0.19577531,110300.0,110290.0,0.37506697]
[1748368588170,0.19577531,110300.0,110290.0,0.41892073]
[1748368588468,0.19577531,110300.0,110290.0,0.77972073]
[1748368588671,0.18577531,110300.0,110290.0,0.92729885]
[1748368588868,0.18565531,110300.0,110290.0,1.33416992]
[1748368589172,0.27197816,110310.0,110300.0,0.1812331]
[1748368589367,0.27197816,110310.0,110300.0,1.06831566]
[1748368589584,0.27209816,110310.0,110300.0,1.15897166]
[1748368590073,0.27209816,110310.0,110300.0,1.27765166]
[1748368590277,0.1812057,110320.0,110310.0,0.1812166]
[1748368590580,0.1813257,110320.0,110310.0,1.0880429]
[1748368590770,0.1813257,110320.0,110310.0,1.42869089]
[1748368591176,0.1813257,110320.0,110310.0,1.20224569]
[1748368591380,0.1812057,110320.0,110310.0,1.42869089]
[1748368591574,0.1833257,110320.0,110310.0,1.42869089]
[1748368591765,0.1853257,110320.0,110310.0,1.42869089]
[1748368592168,0.1853257,110320.0,110310.0,1.17869089]
[1748368593072,0.1853257,110320.0,110310.0,1.13584478]
[1748368593073,0.1833257,110320.0,110310.0,1.13584478]
[1748368593273,0.1813257,110320.0,110310.0,1.17954683]
[1748368593472,0.1813257,110320.0,110310.0,1.13584478]
[1748368594377,0.1813257,110320.0,110310.0,1.22584478]
[1748368594768,0.18574801,110320.0,110310.0,1.22584478]
[1748368594968,0.18574801,110320.0,110310.0,0.99939958]
[1748368595280,0.18574801,110320.0,110310.0,1.22584478]
[1748368598772,0.18574801,110320.0,110310.0,0.99939958]
[1748368598976,0.18574801,110320.0,110310.0,1.22584478]
[1748368600272,0.18574801,110320.0,110310.0,0.99939958]
[1748368600473,0.18574801,110320.0,110310.0,1.22584478]
[1748368600673,0.18574801,110320.0,110310.0,1.26943276]
[1748368601083,0.18574801,110320.0,110310.0,1.22584478]
[1748368602283,0.18574801,110320.0,110310.0,0.99939958]
[1748368602583,0.18574801,110320.0,110310.0,1.22584478]
[1748368604175,0.21794801,110320.0,110310.0,1.22584478]
[1748368605685,0.21794801,110320.0,110310.0,1.13519679]
[1748368606779,0.21794801,110320.0,110310.0,1.17883198]
[1748368607175,0.21794801,110320.0,110310.0,1.13519679]
[1748368607582,0.21794801,110320.0,110310.0,1.17882806]
[1748368607891,0.21794801,110320.0,110310.0,1.13519679]
[1748368608073,0.21794801,110320.0,110310.0,1.17884138]
[1748368608275,0.21794801,110320.0,110310.0,0.95239618]
[1748368608484,0.21794801,110320.0,110310.0,1.17884138]
[1748368609580,0.21794801,110320.0,110310.0,1.17888283]
[1748368609977,0.21794801,110320.0,110310.0,0.95243763]
[1748368610185,0.28424801,110320.0,110310.0,0.95243763]
[1748368610380,0.28424801,110320.0,110310.0,1.17888283]
[1748368610987,0.28424801,110320.0,110310.0,0.95243763]
[1748368611285,0.28424801,110320.0,110310.0,1.17888283]
[1748368613592,0.28424801,110320.0,110310.0,1.13519679]
[1748368613784,0.28424801,110320.0,110310.0,1.17894048]
[1748368617091,0.25114801,110320.0,110310.0,1.17894048]
[1748368617295,0.21794251,110320.0,110310.0,1.15249528]
[1748368617485,0.21794251,110320.0,110310.0,1.37894048]
[1748368617686,0.21794251,110320.0,110310.0,1.37901555]
[1748368618093,0.21794251,110320.0,110310.0,1.42890095]
[1748368618496,0.21794251,110320.0,110310.0,1.53276365]
[1748368619191,0.00454231,110320.0,110310.0,1.57452624]
[1748368619388,0.18132056,110330.0,110320.0,0.1812001]
[1748368619691,0.21442056,110330.0,110320.0,1.44953266]
[1748368620601,0.24462056,110330.0,110320.0,1.44953266]
[1748368620900,0.24462056,110330.0,110320.0,1.25216029]
[1748368621090,0.24462056,110330.0,110320.0,1.02571509]
[1748368621485,0.24462056,110330.0,110320.0,1.25216029]
[1748368621687,0.24462056,110330.0,110320.0,1.26562784]
[1748368622797,0.24462056,110330.0,110320.0,0.88990264]
[1748368623003,0.72922056,110330.0,110320.0,1.00798264]
[1748368623501,0.27462056,110330.0,110320.0,0.70870254]
[1748368623696,1.31642576,110330.0,110320.0,0.19500254]
[1748368623898,1.59652576,110330.0,110320.0,0.13346755]
[1748368624102,1.59652576,110330.0,110320.0,0.12]
[1748368625198,1.60194807,110330.0,110320.0,0.12]
[1748368625707,1.60494807,110330.0,110320.0,0.12]
[1748368630804,0.92394287,110330.0,110320.0,0.3012002]
[1748368631005,0.36314287,110330.0,110320.0,0.73709429]
[1748368631206,0.10195857,110330.0,110320.0,1.03746523]
[1748368631402,0.73770237,110330.0,110320.0,1.06886523]
[1748368631802,0.73766237,110330.0,110320.0,1.06886523]
[1748368632001,0.73466237,110330.0,110320.0,1.20886523]
[1748368632203,0.73666237,110330.0,110320.0,1.20886523]
[1748368632611,0.28226237,110330.0,110320.0,1.20886523]
[1748368632812,0.73466237,110330.0,110320.0,1.20886523]
[1748368633004,0.73366237,110330.0,110320.0,1.20886523]
[1748368633513,0.73366237,110330.0,110320.0,0.98240786]
[1748368633715,0.73366237,110330.0,110320.0,1.20885306]
[1748368634013,0.73366237,110330.0,110320.0,0.80120766]
[1748368634213,0.73366237,110330.0,110320.0,0.73970766]
[1748368634405,0.96010757,110330.0,110320.0,0.73970766]
[1748368635313,0.73366237,110330.0,110320.0,0.92090786]
[1748368635521,0.73466237,110330.0,110320.0,0.92090786]
[1748368635812,0.73666237,110330.0,110320.0,0.92090786]
[1748368636009,0.73666237,110330.0,110320.0,0.56010786]
[1748368636714,0.73666237,110330.0,110320.0,0.37890766]
[1748368636915,0.73666237,110330.0,110320.0,0.56010786]
[1748368637104,0.73666237,110330.0,110320.0,0.51629429]
[1748368638904,0.73666237,110330.0,110320.0,0.19509409]
[1748368639418,0.73666237,110330.0,110320.0,0.37629429]
[1748368639811,0.73466237,110330.0,110320.0,0.37629429]
[1748368640011,0.79566237,110330.0,110320.0,0.37629429]
[1748368641316,1.02210757,110330.0,110320.0,0.37629429]
[1748368641614,1.02210757,110330.0,110320.0,0.19509409]
[1748368642011,1.38290757,110330.0,110320.0,0.12]
[1748368642818,1.67290757,110330.0,110320.0,0.12]
[1748368643119,1.79050757,110330.0,110320.0,0.12]
[1748368647217,1.79050757,110330.0,110320.0,0.16382598]
[1748368647817,1.56406237,110330.0,110320.0,0.16382598]
[1748368648016,1.79050757,110330.0,110320.0,0.16382598]
[1748368649517,1.79050757,110330.0,110320.0,0.16382864]
[1748368650022,1.56406237,110330.0,110320.0,0.16382864]
[1748368650221,1.79050757,110330.0,110320.0,0.16382864]
[1748368650420,1.79050757,110330.0,110320.0,0.19432864]
[1748368650621,0.74886237,110330.0,110320.0,0.37552884]
[1748368650916,0.99274237,110330.0,110320.0,0.28816363]
[1748368651523,0.42114237,110330.0,110320.0,0.46936383]
[1748368651821,0.87526237,110330.0,110320.0,0.50216383]
[1748368652020,0.87514237,110330.0,110320.0,0.50216383]
[1748368652327,0.87514237,110330.0,110320.0,0.50217288]
[1748368652528,0.87526237,110330.0,110320.0,0.50217288]
[1748368653522,0.87526237,110330.0,110320.0,0.515835]
[1748368655030,0.87526237,110330.0,110320.0,0.3346348]
[1748368655919,0.87526237,110330.0,110320.0,0.515835]
[1748368656225,0.42126237,110330.0,110320.0,0.515835]
[1748368656429,0.73514237,110330.0,110320.0,0.515835]
[1748368656631,0.00667857,110330.0,110320.0,1.05923012]
[1748368656827,0.00655857,110330.0,110320.0,1.45307319]
[1748368657032,0.18786237,110330.0,110320.0,1.25307319]
[1748368657532,0.18786237,110330.0,110320.0,1.25306394]
[1748368657922,0.18586237,110330.0,110320.0,1.25306394]
[1748368658323,0.18586237,110330.0,110320.0,1.02661874]
[1748368658829,0.18586237,110330.0,110320.0,1.25306394]
[1748368661537,0.18586237,110330.0,110320.0,1.25303576]
[1748368662122,0.21766237,110330.0,110320.0,1.02659056]
[1748368662526,0.21766237,110330.0,110320.0,1.25303576]
[1748368665752,0.21766237,110330.0,110320.0,1.2530166]
[1748368666050,0.21766237,110330.0,110320.0,1.20923012]
[1748368666445,0.18586237,110330.0,110320.0,1.20923012]
[1748368668938,0.00467857,110330.0,110320.0,1.20923012]
[1748368669143,0.00467857,110330.0,110320.0,1.41923012]
[1748368669344,0.00467857,110330.0,110320.0,1.78008735]
[1748368669345,0.00455857,110330.0,110320.0,1.78008735]
[1748368669545,0.00467857,110330.0,110320.0,1.82992957]
[1748368669756,0.00467857,110330.0,110320.0,1.60348437]
[1748368670753,0.00467857,110330.0,110320.0,1.70709956]
[1748368671455,0.00467857,110330.0,110320.0,2.16057956]
[1748368672253,0.18586237,110330.0,110320.0,2.16057956]
[1748368673656,0.18586237,110330.0,110320.0,1.48065436]
[1748368673863,0.18586237,110330.0,110320.0,1.70709956]
[1748368674955,0.18586237,110330.0,110320.0,1.14721436]
[1748368675144,0.24906237,110330.0,110320.0,1.23721436]
[1748368675851,0.24906237,110330.0,110320.0,1.46365956]
[1748368676249,0.24906237,110330.0,110320.0,1.23721436]
[1748368679261,0.24906237,110330.0,110320.0,1.24880102]
[1748368679457,0.24906237,110330.0,110320.0,1.08375695]
[1748368681965,0.24906237,110330.0,110320.0,1.31024344]
[1748368682261,0.21816237,110330.0,110320.0,1.50024344]
[1748368683068,0.00467857,110330.0,110320.0,1.50024344]
[1748368683460,0.00455857,110330.0,110320.0,1.50024344]
[1748368683659,0.00467857,110330.0,110320.0,1.50024344]
[1748368683859,0.18586237,110330.0,110320.0,1.50024344]
[1748368684062,0.00467857,110330.0,110320.0,1.50024344]
[1748368684264,0.18586237,110330.0,110320.0,1.22998492]
[1748368684460,0.21826237,110330.0,110320.0,1.45643012]
[1748368685566,0.03707857,110330.0,110320.0,1.45643012]
[1748368686068,0.00467857,110330.0,110320.0,1.45643012]
[1748368686462,0.00455857,110330.0,110320.0,1.45643012]
[1748368686674,0.18586237,110330.0,110320.0,1.45643012]
[1748368686970,0.00467857,110330.0,110320.0,1.45643012]
[1748368687365,0.00467857,110330.0,110320.0,1.50030307]
[1748368689367,0.00467857,110330.0,110320.0,1.91106157]
[1748368689560,0.00467857,110330.0,110320.0,2.02626342]
[1748368689964,0.00467857,110330.0,110320.0,2.02625152]
[1748368691369,0.18586237,110330.0,110320.0,1.79980632]
[1748368691569,0.18586237,110330.0,110320.0,2.02625152]
[1748368692765,0.18586237,110330.0,110320.0,2.01466546]
[1748368693158,0.00467857,110330.0,110320.0,2.01466546]
[1748368694062,0.00467857,110330.0,110320.0,2.24110209]
[1748368694365,0.18586237,110330.0,110320.0,1.75541169]
[1748368694571,0.27906237,110330.0,110320.0,1.9105411]
[1748368694967,0.03547857,110330.0,110320.0,1.7933411]
[1748368695159,0.03547857,110330.0,110320.0,2.30172611]
[1748368695361,0.03535857,110330.0,110320.0,2.3632611]
[1748368695557,0.03547857,110330.0,110320.0,2.3632611]
[1748368697557,0.03547857,110330.0,110320.0,2.1368159]
[1748368697764,0.03547857,110330.0,110320.0,2.3632611]
[1748368699469,0.03547857,110330.0,110320.0,2.46687689]
[1748368701572,0.03547857,110330.0,110320.0,2.58207874]
[1748368701773,0.03547857,110330.0,110320.0,2.47846295]
[1748368702273,0.03547857,110330.0,110320.0,2.47849244]
[1748368702667,0.03547857,110330.0,110320.0,2.54933909]
[1748368704077,0.03547857,110330.0,110320.0,1.82773909]
[1748368704274,0.03547857,110330.0,110320.0,2.54933909]
[1748368706375,0.03547857,110330.0,110320.0,2.54933981]
[1748368707481,0.03547857,110330.0,110320.0,2.4784924]
[1748368708674,0.06567857,110330.0,110320.0,2.36329131]
[1748368710470,0.06567857,110330.0,110320.0,2.4784924]
[1748368712180,0.06567857,110330.0,110320.0,2.36329131]
[1748368712571,0.06567857,110330.0,110320.0,2.46697603]
[1748368713480,0.06567857,110330.0,110320.0,2.24053083]
[1748368713884,0.06567857,110330.0,110320.0,2.36329131]
[1748368714584,0.06567857,110330.0,110320.0,2.0142962]
[1748368714883,0.06567857,110330.0,110320.0,1.91061148]
[1748368715184,0.09837857,110330.0,110320.0,1.91061148]
[1748368715572,0.09837857,110330.0,110320.0,1.91013148]
[1748368716487,0.09837857,110330.0,110320.0,1.79341148]
[1748368716675,0.09837857,110330.0,110320.0,1.91013148]
[1748368717982,0.09837857,110330.0,110320.0,1.76111148]
[1748368718184,0.09837857,110330.0,110320.0,1.87783148]
[1748368718488,0.09837857,110330.0,110320.0,1.82784641]
[1748368720784,0.09837857,110330.0,110320.0,1.85914641]
[1748368724791,0.09837857,110330.0,110320.0,1.90912022]
[1748368725396,0.09825857,110330.0,110320.0,1.90912022]
[1748368726292,0.09825857,110330.0,110320.0,1.68267502]
[1748368726482,0.09825857,110330.0,110320.0,1.90912022]
[1748368726988,0.09825857,110330.0,110320.0,1.90910398]
[1748368727383,0.09825857,110330.0,110320.0,1.85913355]
[1748368728293,0.09825857,110330.0,110320.0,2.01278925]
[1748368728487,0.09825857,110330.0,110320.0,2.01279101]
[1748368728887,0.09825857,110330.0,110320.0,1.90910629]
[1748368729788,0.09825857,110330.0,110320.0,2.01279101]
[1748368733989,0.09825857,110330.0,110320.0,2.04095789]
[1748368734398,0.09825857,110330.0,110320.0,2.04039789]
[1748368734902,0.27944237,110330.0,110320.0,1.50234109]
[1748368735088,0.27944237,110330.0,110320.0,1.78106471]
[1748368735396,0.27944237,110330.0,110320.0,1.81156471]
[1748368736001,0.27944237,110330.0,110320.0,1.78331154]
[1748368736192,0.27944237,110330.0,110320.0,1.84484653]
[1748368736498,0.27944237,110330.0,110320.0,1.94853125]
[1748368737001,0.03535857,110330.0,110320.0,1.84484653]
[1748368737190,0.03535857,110330.0,110320.0,1.68338762]
[1748368737389,0.03547857,110330.0,110320.0,1.9688603]
[1748368737590,0.03547857,110330.0,110320.0,2.02488371]
[1748368738089,0.03547857,110330.0,110320.0,2.01337021]
[1748368738289,0.03535857,110330.0,110320.0,2.01337021]
[1748368738598,0.03547857,110330.0,110320.0,2.01337021]
[1748368739100,0.03547857,110330.0,110320.0,2.01334824]
[1748368739692,0.03547857,110330.0,110320.0,2.36096456]
[1748368740500,0.03547857,110330.0,110320.0,1.90972456]
[1748368741404,0.03547857,110330.0,110320.0,2.01334824]
[1748368742898,0.09797857,110330.0,110320.0,1.78698933]
[1748368743104,0.09797857,110330.0,110320.0,2.01334824]
[1748368743702,0.09797857,110330.0,110320.0,1.78698933]
[1748368744001,0.09797857,110330.0,110320.0,2.01334824]
[1748368745902,0.27916237,110330.0,110320.0,1.94844824]
[1748368746094,0.27916237,110330.0,110320.0,1.98174824]